bitfinex/quotes_ETHUSD_20220111
["timestamp","ask_amount","ask_price","bid_price","bid_amount"]
[1641874347915,2.73118387,3112.7,3112.6,0.01136847]
[1641874348314,2.73118387,3112.7,3112.5,0.01193689]
[1641874348916,2.73118387,3113.0,3112.5,0.01193689]
[1641874349170,1.47984492,3112.9,3112.5,0.01193689]
[1641874350366,2.73118387,3112.8,3112.5,0.01193689]
[1641874352366,2.73118387,3112.8,3112.6,0.00764681]
[1641874352367,1.0,3112.7,3112.6,0.00764681]
[1641874352565,1.08031,3112.7,3112.6,0.00764681]
[1641874352765,1.08031,3112.7,3112.6,0.01901528]
[1641874353019,5.35728425,3112.7,3112.6,0.01901528]
[1641874353218,8.08846812,3112.7,3112.6,0.01901528]
[1641874353816,3.81149387,3112.7,3112.6,0.01901528]
[1641874354117,5.43927021,3112.7,3112.6,0.01901528]
[1641874355824,3.81149387,3112.7,3112.6,0.01901528]
[1641874357263,3.81149387,3112.7,3112.6,0.01924949]
[1641874362218,6.46149387,3112.7,3112.6,0.01924949]
[1641874363124,6.38118387,3112.7,3112.6,0.01924949]
[1641874363525,10.48995979,3112.7,3112.6,0.01924949]
[1641874364371,6.38118387,3112.7,3112.6,0.01924949]
[1641874364968,6.68118387,3112.7,3112.6,0.01924949]
[1641874365173,9.76149387,3112.7,3112.6,0.01924949]
[1641874365770,6.76149387,3112.7,3112.6,0.01924949]
[1641874365972,8.35705853,3112.7,3112.6,0.01924949]
[1641874366772,6.76149387,3112.7,3112.6,0.01924949]
[1641874366972,10.99554445,3112.7,3112.6,0.01924949]
[1641874367372,10.9991244,3112.7,3112.6,0.0218765]
[1641874367575,11.2991244,3112.7,3112.6,0.0218765]
[1641874368018,10.9991244,3112.7,3112.6,0.0218765]
[1641874370715,11.8027744,3112.7,3112.6,0.0218765]
[1641874371515,6.15,3112.6,3111.4,0.13819997]
[1641874371765,4.54523256,3112.5,3111.4,0.13819997]
[1641874371963,6.39085899,3112.5,3111.5,0.00625266]
[1641874372170,6.47117899,3112.5,3111.5,0.00625266]
[1641874372361,6.47117899,3112.5,3111.4,0.08045263]
[1641874372764,0.00511581,3112.4,3111.4,0.08045263]
[1641874372968,1.5922808,3112.3,3111.4,0.08045263]
[1641874373166,1.22415493,3111.6,3111.4,0.08045263]
[1641874373364,4.12858916,3112.2,3111.4,0.08045263]
[1641874373570,1.0,3112.1,3111.4,0.08045263]
[1641874373765,1.00341054,3112.1,3111.4,0.08045263]
[1641874373968,0.00284212,3112.0,3111.4,0.08045263]
[1641874374364,0.0022737,3111.9,3111.4,0.08045263]
[1641874374564,1.31273212,3111.9,3111.4,0.08045263]
[1641874374766,1.31273212,3111.9,3111.0,1.43482881]
[1641874374767,1.34212999,3111.8,3111.0,1.43482881]
[1641874374965,1.64212999,3111.8,3111.0,1.43482881]
[1641874375265,0.00113685,3111.7,3111.1,0.00227369]
[1641874375718,2.73232072,3111.7,3111.1,0.00227369]
[1641874376114,1.0,3111.6,3111.1,0.00227369]
[1641874376315,1.3,3111.6,3110.9,1.11788144]
[1641874376516,1.25,3111.6,3111.0,0.00284211]
[1641874377416,2.73118387,3111.5,3111.3,0.00884207]
[1641874379365,2.73579493,3111.7,3111.3,0.00884207]
[1641874379766,3.03579493,3111.7,3111.3,0.00884207]
[1641874380365,0.30461106,3111.7,3111.3,0.00884207]
[1641874380564,1.00461106,3111.7,3111.3,0.00884207]
[1641874380964,2.73118387,3111.6,3111.3,0.00884207]
[1641874381566,3.03118387,3111.6,3111.3,0.00884207]
[1641874381867,2.73118387,3111.6,3111.3,0.00884207]
[1641874382065,3.03118387,3111.6,3111.3,0.00884207]
[1641874382265,3.11151387,3111.6,3111.3,0.00884207]
[1641874382468,3.11499554,3111.6,3111.1,0.91499927]
[1641874382927,3.11499554,3111.6,3111.2,0.00170527]
[1641874383330,2.73118387,3111.5,3111.2,0.00170527]
[1641874384730,0.08035,3111.4,3111.2,0.00170527]
[1641874384928,2.81153387,3111.5,3111.2,0.00170527]
[1641874385227,2.73118387,3111.3,3111.2,0.00170527]
[1641874386030,0.3,3111.3,3111.2,0.00170527]
[1641874386229,0.38035,3111.3,3111.2,0.00170527]
[1641874386679,3.11153387,3111.3,3111.2,0.00170527]
[1641874386869,3.03118387,3111.3,3111.2,0.00170527]
[1641874387270,3.03465851,3111.3,3111.2,0.01055391]
[1641874387572,2.73465851,3111.3,3111.2,0.01055391]
[1641874387771,3.03465851,3111.3,3111.2,0.01055391]
[1641874388674,2.73465851,3111.3,3111.2,0.01055391]
[1641874389472,0.00347464,3111.3,3111.2,0.01055391]
[1641874389678,0.00347464,3111.3,3111.2,4.44882278]
[1641874391323,0.00347464,3111.3,3111.2,0.47155391]
[1641874392922,0.00347464,3111.3,3111.2,4.22208758]
[1641874393523,7.464e-05,3111.3,3111.2,5.50784205]
[1641874393726,0.00113685,3111.7,3111.3,0.00431955]
[1641874393927,0.00113685,3111.7,3111.4,2.06776]
[1641874394179,0.0022737,3111.6,3111.5,0.3]
[1641874394368,0.0022737,3111.6,3111.5,5.161]
[1641874395369,0.0022737,3111.6,3111.5,0.761]
[1641874397371,0.0022737,3111.6,3111.5,3.97256172]
[1641874398714,0.0022737,3111.6,3111.5,7.61016131]
[1641874403968,0.0022737,3111.6,3111.5,3.67256172]
[1641874404168,0.0022737,3111.6,3111.5,3.21156172]
[1641874405166,0.3022737,3111.6,3111.5,3.21156172]
[1641874405422,2.81436836,3111.6,3111.5,3.21156172]
[1641874405818,3.11436836,3111.6,3111.5,3.21156172]
[1641874406021,4.11436836,3111.6,3111.5,3.21156172]
[1641874406219,3.11436836,3111.6,3111.5,3.21156172]
[1641874406417,4.11436836,3111.6,3111.5,3.21156172]
[1641874406819,2.81436836,3111.6,3111.5,3.21156172]
[1641874407021,2.81210466,3111.6,3111.5,3.21156172]
[1641874407421,2.81210466,3111.6,3111.5,3.20793326]
[1641874407622,2.81210466,3111.6,3111.5,4.01300993]
[1641874408224,2.73176466,3111.6,3111.5,4.01300993]
[1641874411665,2.73176466,3111.6,3111.5,3.96300993]
[1641874412467,2.73176466,3111.6,3111.5,3.96895988]
[1641874415015,3.03176466,3111.6,3111.5,3.96895988]
[1641874415417,3.03176466,3111.6,3111.5,3.16388321]
[1641874415822,4.03176466,3111.6,3111.5,3.16388321]
[1641874416019,4.11209466,3111.6,3111.5,3.16388321]
[1641874417368,4.11209466,3111.6,3111.5,3.16636236]
[1641874418570,5.07289466,3111.6,3111.5,3.16636236]
[1641874418970,4.07289466,3111.6,3111.5,3.16636236]
[1641874419171,5.07289466,3111.6,3111.5,3.16636236]
[1641874421425,4.07289466,3111.6,3111.5,3.16636236]
[1641874422729,3.99256466,3111.6,3111.5,3.16636236]
[1641874423128,4.99256466,3111.6,3111.5,3.16636236]
[1641874423927,5.07289466,3111.6,3111.5,3.16636236]
[1641874425974,4.99256466,3111.6,3111.5,3.16636236]
[1641874426374,3.99256466,3111.6,3111.5,3.16636236]
[1641874426773,4.99256466,3111.6,3111.5,3.16636236]
[1641874427172,5.07289466,3111.6,3111.5,3.16636236]
[1641874428016,4.07289466,3111.6,3111.5,3.16636236]
[1641874428323,3.99256466,3111.6,3111.5,3.16636236]
[1641874428520,4.99256466,3111.6,3111.5,3.16636236]
[1641874429621,5.07289466,3111.6,3111.5,3.16636236]
[1641874431683,4.99256466,3111.6,3111.5,3.16636236]
[1641874432070,3.69256466,3111.6,3111.5,3.16636236]
[1641874433575,3.69256466,3111.6,3111.5,6.91867031]
[1641874433771,3.69256466,3111.6,3111.5,3.46636236]
[1641874436718,3.69256466,3111.6,3111.5,3.16636236]
[1641874441265,3.77289466,3111.6,3111.5,3.16636236]
[1641874442466,3.69256466,3111.6,3111.5,3.16636236]
[1641874449571,3.64975205,3111.6,3111.5,3.16636236]
[1641874454029,3.94975205,3111.6,3111.5,3.16636236]
[1641874455071,4.03008205,3111.6,3111.5,3.16636236]
[1641874456776,3.73008205,3111.6,3111.5,3.16636236]
[1641874457376,3.64975205,3111.6,3111.5,3.16636236]
[1641874458819,3.64975205,3111.6,3111.5,3.46636236]
[1641874459725,3.64975205,3111.6,3111.5,3.16636236]
[1641874463670,3.94975205,3111.6,3111.5,3.16636236]
[1641874463869,3.64975205,3111.6,3111.5,3.46636236]
[1641874464669,3.94975205,3111.6,3111.5,3.16636236]
[1641874465530,4.94975205,3111.6,3111.5,3.16636236]
[1641874465723,5.03008205,3111.6,3111.5,3.16636236]
[1641874467322,5.03008205,3111.6,3111.5,3.16289156]
[1641874468926,8.43008205,3111.6,3111.5,2.74127332]
[1641874469180,6.62236285,3111.6,3111.5,2.74127332]
[1641874469570,12.52236285,3111.6,3111.2,2.62337983]
[1641874469777,0.01215702,3111.3,3110.1,0.08033]
[1641874469975,0.01245299,3110.6,3110.1,0.08033]
[1641874470178,0.01245299,3110.6,3109.6,0.9365281]
[1641874470179,1.04116,3110.5,3109.6,0.9365281]
[1641874470574,1.34116,3110.5,3109.7,0.01080005]
[1641874470776,5.72872776,3109.8,3109.7,0.01080005]
[1641874471173,7.02872776,3109.8,3109.7,0.01080005]
[1641874471375,3.77872776,3109.8,3108.8,3.8496608]
[1641874471575,0.9608,3109.6,3108.4,4.6539308]
[1641874471773,0.08041,3109.5,3109.1,0.70269302]
[1641874471972,1.04121,3109.5,3109.1,0.70269302]
[1641874472172,1.04121,3109.5,3109.2,0.00284212]
[1641874472576,3.73016205,3109.5,3109.2,0.00284212]
[1641874472778,3.73016205,3109.5,3109.1,0.64153514]
[1641874473026,0.00113685,3109.4,3109.1,0.64153514]
[1641874477368,0.00113685,3109.4,3109.3,0.01778789]
[1641874478969,0.00113685,3109.4,3109.3,3.21778789]
[1641874479772,0.00113685,3109.4,3109.3,0.01778789]
[1641874479971,0.00113685,3109.4,3109.3,4.87878789]
[1641874481235,0.00113685,3109.4,3109.3,0.77878789]
[1641874481439,0.89423685,3109.5,3109.3,0.47878789]
[1641874482937,0.89423685,3109.5,3109.3,0.77878789]
[1641874485879,0.89423685,3109.5,3109.3,0.47878789]
[1641874487380,0.89423685,3109.5,3109.3,0.47053348]
[1641874492777,0.89423685,3109.5,3109.3,0.37053348]
[1641874493380,0.82653685,3109.5,3109.3,0.37053348]
[1641874495729,0.82653685,3109.5,3109.4,5.91236588]
[1641874495930,0.9608,3110.5,3109.5,5.9]
[1641874496128,0.9608,3110.5,3110.0,0.80378]
[1641874496329,0.00568424,3110.4,3110.1,5.02149723]
[1641874496527,0.00568424,3110.4,3110.1,5.32149723]
[1641874496728,0.00511581,3110.3,3110.1,5.32149723]
[1641874496927,0.00511581,3110.3,3110.2,3.7]
[1641874497129,0.9608,3110.4,3110.2,4.161]
[1641874497525,0.9608,3110.4,3110.2,0.461]
[1641874499185,0.9608,3110.4,3110.3,3.60145095]
[1641874499476,0.96648424,3110.4,3110.3,4.36245095]
[1641874499976,0.96648424,3110.4,3110.3,5.36245095]
[1641874500175,0.96648424,3110.4,3110.3,10.12645095]
[1641874500374,1.04116,3111.6,3110.3,10.12645095]
[1641874500576,1.04116,3111.6,3110.4,1.0]
[1641874500776,0.00511581,3111.3,3110.9,0.80354]
[1641874500976,0.00511581,3111.3,3111.0,3.90498281]
[1641874501181,0.00454738,3111.2,3111.1,0.92870727]
[1641874501376,0.00454738,3111.2,3111.1,5.17478476]
[1641874501579,0.00454738,3111.2,3111.1,6.17478476]
[1641874501778,0.00454738,3111.2,3111.1,5.17478476]
[1641874502177,0.00454738,3111.2,3111.1,6.17478476]
[1641874507174,0.00454738,3111.2,3111.1,6.18472195]
[1641874508777,0.00454738,3111.2,3111.1,0.47093719]
[1641874508980,0.00454738,3111.2,3111.1,0.00993719]
[1641874509578,4.51202076,3111.2,3111.1,0.00993719]
[1641874509876,4.81202076,3111.2,3111.1,0.00993719]
[1641874510077,7.54490307,3111.2,3111.1,3.20993719]
[1641874510533,7.54490307,3111.2,3111.1,4.10616549]
[1641874510534,4.29490307,3111.2,3111.1,4.10616549]
[1641874511331,1.64237076,3111.2,3111.1,4.10616549]
[1641874511731,1.56202076,3111.2,3111.1,4.10616549]
[1641874511931,4.29486369,3111.2,3111.1,4.10616549]
[1641874512331,4.29486369,3111.2,3111.1,4.12107129]
[1641874512533,1.56202076,3111.2,3111.1,4.12107129]
[1641874512934,1.26202076,3111.2,3111.1,4.12107129]
[1641874513336,1.26202076,3111.2,3111.1,8.04018154]
[1641874513533,1.26202076,3111.2,3111.1,8.04972569]
[1641874513733,1.26202076,3111.2,3111.1,7.74972569]
[1641874514177,1.26202076,3111.2,3111.1,4.12107129]
[1641874514373,1.26202076,3111.2,3111.1,4.58207129]
[1641874514872,1.26202076,3111.2,3111.1,8.08904301]
[1641874515074,1.26202076,3111.2,3111.1,4.58207129]
[1641874518724,1.26202076,3111.2,3111.1,8.37104185]
[1641874519124,1.26202076,3111.2,3111.1,4.88207129]
[1641874519326,1.26202076,3111.2,3111.1,8.37505723]
[1641874519524,1.26202076,3111.2,3111.1,8.37130404]
[1641874519727,1.26202076,3111.2,3111.1,4.88207129]
[1641874521530,1.26202076,3111.2,3111.1,8.38846546]
[1641874521773,1.26202076,3111.2,3111.1,8.38091138]
[1641874521976,1.26202076,3111.2,3111.1,4.88207129]
[1641874523275,1.26202076,3111.2,3111.1,4.58207129]
[1641874523677,1.26202076,3111.2,3111.1,4.88207129]
[1641874525735,1.26202076,3111.2,3111.1,4.58207129]
[1641874526637,1.26202076,3111.2,3111.1,4.88207129]
[1641874527040,1.26202076,3111.2,3111.1,3.96920532]
[1641874527237,1.26202076,3111.2,3111.1,3.20820532]
[1641874527638,1.34237076,3111.2,3111.1,3.20820532]
[1641874528440,1.64237076,3111.2,3111.1,3.20820532]
[1641874529277,5.79237076,3111.2,3111.1,3.20820532]
[1641874529475,6.79237076,3111.2,3111.1,3.20820532]
[1641874529874,5.79237076,3111.2,3111.1,3.20820532]
[1641874530077,2.64237076,3111.2,3111.1,3.20820532]
[1641874530285,6.8608,3111.0,3108.8,3.21468]
[1641874530482,6.8608,3111.0,3107.6,6.175304]
[1641874530483,0.9608,3109.9,3109.1,6.4309]
[1641874530778,0.08039,3109.8,3109.1,6.43828951]
[1641874530976,1.04119,3109.8,3109.1,6.43828951]
[1641874531375,0.9608,3109.8,3109.1,6.43828951]
[1641874531576,0.9608,3109.7,3109.1,6.43828951]
[1641874531777,1.04119,3109.7,3109.1,6.43828951]
[1641874532576,1.04119,3109.7,3109.4,0.91108371]
[1641874533034,1.04119,3109.7,3109.5,0.00511582]
[1641874535239,1.34119,3109.7,3109.5,0.00511582]
[1641874536041,1.04119,3109.7,3109.5,0.00511582]
[1641874536240,3.55747338,3109.6,3109.5,0.00511582]
[1641874536877,4.93786338,3109.6,3109.5,0.00511582]
[1641874537877,3.63786338,3109.6,3109.5,0.00511582]
[1641874538079,3.55747338,3109.6,3109.5,0.00511582]
[1641874539681,1.25747338,3109.6,3109.5,0.00511582]
[1641874540084,1.25747338,3109.6,3109.5,3.20511582]
[1641874541041,1.25747338,3109.6,3109.5,0.00511582]
[1641874543140,4.65747338,3109.6,3109.5,0.00511582]
[1641874543539,4.95747338,3109.6,3109.5,0.00511582]
[1641874544184,1.55747338,3109.6,3109.5,0.00511582]
[1641874544380,1.25747338,3109.6,3109.5,0.00511582]
[1641874545383,1.55747338,3109.6,3109.5,0.00511582]
[1641874545780,1.25747338,3109.6,3109.5,0.00511582]
[1641874550832,1.33786338,3109.6,3109.5,0.00511582]
[1641874551133,3.83786338,3109.6,3109.5,0.00511582]
[1641874551331,4.13786338,3109.6,3109.5,0.00511582]
[1641874551528,5.13786338,3109.6,3109.5,0.00511582]
[1641874552183,3.83786338,3109.6,3109.5,0.00511582]
[1641874552381,1.33786338,3109.6,3109.5,0.00511582]
[1641874552785,1.25747338,3109.6,3109.5,0.00511582]
[1641874555088,1.25747338,3109.6,3109.5,5.41611582]
[1641874556141,1.25747338,3109.6,3109.5,0.46611582]
[1641874557141,1.25747338,3109.6,3109.5,0.00511582]
[1641874562583,1.55747338,3109.6,3109.5,0.00511582]
[1641874563032,1.55747338,3109.6,3109.4,0.91108371]
[1641874563231,1.04119,3109.5,3109.4,0.91108371]
[1641874563437,0.9608,3109.5,3109.4,0.91108371]
[1641874563636,1.25747338,3109.5,3109.4,0.91676795]
[1641874565233,1.25747338,3109.5,3109.4,1.21676795]
[1641874565433,1.25747338,3109.5,3109.4,0.91676795]
[1641874566881,1.25747338,3109.5,3109.4,4.11676795]
[1641874568581,1.25747338,3109.5,3109.4,1.21676795]
[1641874569184,1.25747338,3109.5,3109.4,0.91676795]
[1641874569382,1.55747338,3109.5,3109.4,0.91676795]
[1641874571830,1.25747338,3109.5,3109.4,0.91676795]
[1641874578730,3.99164426,3109.5,3109.4,0.91676795]
[1641874579832,3.99164426,3109.5,3109.4,1.21676795]
[1641874580036,0.12825133,3109.5,3109.4,7.27776795]
[1641874580237,0.08039,3110.0,3109.5,5.9]
[1641874580431,0.08039,3110.0,3109.6,0.461]
[1641874580631,0.08039,3110.0,3109.6,1.76554739]
[1641874580831,1.58702964,3110.3,3109.7,0.00397897]
[1641874581133,1.58702964,3110.8,3109.8,0.461]
[1641874581335,1.58702964,3110.8,3109.8,0.761]
[1641874581534,0.00113684,3110.6,3109.9,0.00284212]
[1641874581783,0.00113684,3110.6,3110.4,0.66461075]
[1641874587447,0.08036,3110.5,3110.4,0.66461075]
[1641874588248,0.08036,3110.5,3109.9,0.46384212]
[1641874588648,0.08036,3110.5,3110.0,0.0022737]
[1641874589290,0.08036,3110.5,3110.3,0.85013879]
[1641874590495,0.00113684,3110.6,3110.3,1.15013879]
[1641874590890,0.00113684,3110.6,3110.3,1.10013879]
[1641874592091,0.00113684,3110.6,3110.3,0.85013879]
[1641874596038,0.00113684,3110.6,3110.3,1.15013879]
[1641874596439,0.00113684,3110.6,3110.3,1.61113879]
[1641874598202,0.00113684,3110.6,3110.3,1.31113879]
[1641874601235,0.00113684,3110.6,3110.3,1.61113879]
[1641874602635,0.00113684,3110.6,3110.3,1.31113879]
[1641874607586,2.73456419,3110.6,3110.3,1.31113879]
[1641874608036,0.00113684,3110.6,3110.3,1.31113879]
[1641874608632,2.73456419,3110.6,3110.3,1.31113879]
[1641874610838,2.73456419,3110.6,3110.3,1.61113879]
[1641874611535,2.73342735,3110.6,3110.3,1.61113879]
[1641874612186,2.73342735,3110.6,3110.3,1.31113879]
[1641874613987,0.08036,3110.9,3110.3,1.31113879]
[1641874613988,1.25195094,3110.7,3110.3,1.31113879]
[1641874614490,2.73342735,3110.6,3110.3,1.31113879]
[1641874615088,0.00170527,3110.7,3110.3,1.31113879]
[1641874615445,0.00113684,3110.6,3110.3,1.31113879]
[1641874615847,0.00170527,3110.7,3110.3,1.31113879]
[1641874616246,0.00113684,3110.6,3110.3,1.31113879]
[1641874616645,0.00170527,3110.7,3110.3,1.31113879]
[1641874617043,3.03342735,3110.8,3110.3,1.31113879]
[1641874617044,0.00113684,3110.6,3110.3,1.31113879]
[1641874617448,0.00170527,3110.7,3110.3,1.31113879]
[1641874617846,0.00113684,3110.6,3110.3,1.31113879]
[1641874619048,0.00113684,3110.6,3110.3,1.61113879]
[1641874619689,2.73456419,3110.6,3110.3,1.61113879]
[1641874620487,0.00113684,3110.6,3110.3,1.61113879]
[1641874622585,0.00113684,3110.6,3110.3,1.31113879]
[1641874623042,0.08036,3110.5,3110.3,0.85013879]
[1641874623846,1.51375641,3110.5,3110.3,0.85013879]
[1641874624042,2.81375641,3110.5,3110.3,0.85013879]
[1641874624243,1.51375641,3110.5,3110.3,0.85013879]
[1641874624542,5.78342735,3110.4,3110.3,0.85013879]
[1641874624742,2.81378735,3110.4,3110.3,0.85013879]
[1641874626141,5.21378735,3110.4,3110.3,0.85013879]
[1641874626890,2.81378735,3110.4,3110.3,0.85013879]
[1641874628492,3.11378735,3110.4,3110.3,0.85013879]
[1641874629997,2.81378735,3110.4,3110.3,0.85013879]
[1641874634048,2.73342735,3110.4,3110.3,0.85013879]
[1641874637488,2.81378735,3110.4,3110.3,0.85013879]
[1641874639846,2.73342735,3110.4,3110.3,0.85013879]
[1641874641699,2.73342735,3110.4,3109.8,3.2]
[1641874641896,1.08037,3110.3,3109.8,3.2]
[1641874642089,1.08037,3110.3,3109.9,0.00284212]
[1641874642491,0.08037,3110.3,3109.9,0.00284212]
[1641874642691,0.08037,3110.3,3110.1,0.75893174]
[1641874642890,1.08037,3110.3,3110.1,0.75893174]
[1641874643200,1.2068,3110.7,3110.1,0.75893174]
[1641874643201,0.08038,3111.3,3110.3,5.9]
[1641874643398,1.10990357,3111.3,3111.2,5.91215373]
[1641874643698,5.23090514,3111.8,3111.2,5.91215373]
[1641874643699,1.0100917,3111.8,3111.3,5.9]
[1641874643893,1.0100917,3111.8,3111.4,9.68044154]
[1641874644092,1.0100917,3111.8,3111.7,0.01200265]
[1641874644700,3.14888009,3112.0,3111.8,1.01]
[1641874644897,6.96269846,3113.4,3111.9,18.0909]
[1641874645196,6.96269846,3113.4,3113.3,0.80650158]
[1641874645197,6.88236846,3113.4,3113.3,0.80650158]
[1641874645444,6.88236846,3113.4,3113.3,0.461]
[1641874645643,6.89828432,3113.4,3113.3,0.54128]
[1641874646044,0.14470886,3113.4,3113.3,0.54128]
[1641874646243,0.14470886,3113.4,3113.3,6.8851]
[1641874646846,0.14470886,3113.4,3113.3,6.50438]
[1641874647049,6.12498886,3113.4,3113.3,6.4241]
[1641874647245,0.17498886,3113.4,3113.3,6.4241]
[1641874647447,0.18166081,3113.4,3113.3,6.4241]
[1641874648355,0.10138081,3113.4,3113.3,6.4241]
[1641874649210,6.00138081,3113.4,3113.3,0.0001]
[1641874649410,6.08166081,3113.4,3113.3,0.0001]
[1641874650404,10.25530226,3113.4,3113.3,0.0001]
[1641874650805,6.38166081,3113.4,3113.3,0.0001]
[1641874651005,10.2355747,3113.4,3113.3,0.0001]
[1641874651206,6.38166081,3113.4,3113.3,0.0001]
[1641874652408,10.41236227,3113.4,3113.3,0.0001]
[1641874652608,11.67316227,3113.4,3113.3,0.0001]
[1641874652807,8.13128968,3113.4,3113.3,0.0001]
[1641874653245,0.9608,3113.2,3111.7,0.08028]
[1641874653452,2.32146626,3111.8,3111.7,0.08028]
[1641874653643,1.14620609,3111.8,3111.7,0.08028]
[1641874653944,1.15302717,3111.8,3110.6,0.40131547]
[1641874654147,1.45302717,3111.8,3110.6,0.012753]
[1641874654343,0.00625266,3111.7,3110.6,0.012753]
[1641874654747,0.00568424,3111.6,3110.6,0.012753]
[1641874655144,0.00511581,3111.5,3110.6,0.012753]
[1641874655545,0.00454739,3111.4,3110.6,0.012753]
[1641874655948,9.0595,3112.3,3110.7,0.08035]
[1641874655949,0.00397897,3111.3,3110.7,0.08035]
[1641874656348,0.00341054,3111.2,3110.7,0.38035]
[1641874656690,0.00284212,3111.1,3110.7,0.38035]
[1641874657085,0.0022737,3111.0,3110.7,0.08035]
[1641874657291,0.0022737,3111.0,3110.5,0.08035]
[1641874657485,0.00170527,3110.9,3110.6,6.4293]
[1641874657884,0.00113685,3110.8,3110.6,6.7293]
[1641874658286,1.45955275,3111.2,3110.6,6.7293]
[1641874658485,0.08035,3111.6,3110.6,6.7293]
[1641874658687,0.00284212,3111.1,3110.6,6.7293]
[1641874658887,0.00511581,3111.5,3110.6,6.7293]
[1641874659085,0.0022737,3111.0,3110.6,6.7293]
[1641874659286,0.00454739,3111.4,3110.6,6.7293]
[1641874659487,0.00170527,3110.9,3110.6,6.7293]
[1641874659686,1.38586305,3111.2,3110.6,6.7293]
[1641874659889,0.00113685,3110.8,3110.6,6.7293]
[1641874660086,0.00284212,3111.1,3110.6,6.7293]
[1641874660544,0.0022737,3111.0,3110.6,6.7293]
[1641874660940,0.00170527,3110.9,3110.6,6.7293]
[1641874661240,0.00113685,3110.8,3110.6,6.7293]
[1641874661640,0.00284212,3111.1,3110.6,6.7293]
[1641874662041,0.0022737,3111.0,3110.6,6.7293]
[1641874662445,0.00170527,3110.9,3110.6,6.7293]
[1641874662642,0.02820694,3110.8,3110.6,6.7293]
[1641874662844,0.00113685,3110.8,3110.6,6.7293]
[1641874663444,0.00113685,3110.8,3110.6,10.7328989]
[1641874663643,0.00113685,3110.8,3110.7,5.91238122]
[1641874664043,0.00113685,3110.8,3110.7,6.27040718]
[1641874664488,0.00113685,3110.8,3110.7,6.25802596]
[1641874668737,0.00113685,3110.8,3110.7,0.35802596]
[1641874669740,0.00113685,3110.8,3110.7,5.65802596]
[1641874671543,0.00113685,3110.8,3110.7,9.45374036]
[1641874671797,0.08035,3111.4,3110.8,5.2]
[1641874671997,0.08035,3111.9,3110.9,3.85183217]
[1641874672198,0.08035,3111.9,3110.8,5.58033]
[1641874672199,0.00284212,3111.3,3110.8,5.58033]
[1641874672700,0.00227369,3111.2,3110.8,5.58113]
[1641874672894,0.00227369,3111.2,3111.0,0.8035399]
[1641874673096,0.00170527,3111.1,3110.8,7.1070797]
[1641874673298,0.00170527,3111.1,3110.9,0.35802596]
[1641874673496,0.00113685,3111.0,3110.9,0.65802596]
[1641874673696,0.00113685,3111.0,3110.9,3.40802596]
[1641874674097,0.00113685,3111.0,3110.9,0.65802596]
[1641874674596,0.00113685,3111.0,3110.9,3.45802596]
[1641874674998,3.685e-05,3111.0,3110.9,3.75802596]
[1641874675303,3.84546752,3112.6,3111.7,0.80322]
[1641874675559,0.128828,3112.6,3111.8,0.08032]
[1641874675751,0.128828,3112.6,3111.7,0.38032]
[1641874675951,0.08032,3112.5,3111.7,0.3]
[1641874676151,1.025549,3112.5,3111.6,0.761]
[1641874676351,1.35867692,3112.3,3111.6,0.761]
[1641874676551,1.35867692,3112.3,3111.8,0.35802596]
[1641874676851,0.00682108,3112.2,3111.8,0.65802596]
[1641874677253,0.00625265,3112.1,3111.8,0.65802596]
[1641874677550,0.00568423,3112.0,3111.4,1.6871023]
[1641874677755,0.08601423,3112.0,3111.5,0.3]
[1641874677953,1.35867692,3112.3,3111.5,0.3]
[1641874677954,0.00511581,3111.9,3111.5,0.3]
[1641874678251,0.00454738,3111.8,3111.5,0.3]
[1641874678451,0.00454738,3111.8,3111.6,0.23063828]
[1641874678657,0.00397896,3111.7,3111.6,0.23063828]
[1641874679684,0.00397896,3111.7,3111.6,6.13063828]
[1641874679886,0.00397896,3111.7,3111.6,6.43063828]
[1641874680497,0.00397896,3111.7,3111.6,0.23063828]
[1641874680690,0.08430896,3111.7,3111.6,0.23063828]
[1641874681285,0.08430896,3111.7,3111.3,0.08033]
[1641874681487,1.07942401,3111.5,3111.3,0.08033]
[1641874681689,0.08033,3111.4,3111.3,0.08033]
[1641874681889,0.00227369,3111.4,3111.0,0.08035]
[1641874682287,0.00170527,3111.3,3111.0,0.08035]
[1641874682791,0.00113684,3111.2,3111.0,0.8837902]
[1641874683041,0.00113684,3111.2,3111.1,7.73476483]
[1641874683242,0.00568423,3112.0,3111.1,7.73476483]
[1641874683438,0.00113684,3111.2,3111.1,7.73476483]
[1641874683639,0.00511581,3111.9,3111.1,7.73476483]
[1641874683838,0.00113684,3111.2,3111.1,7.73476483]
[1641874684039,0.00454738,3111.8,3111.1,7.73476483]
[1641874684238,1.52908585,3112.1,3111.2,0.88373]
[1641874684439,0.38035,3112.1,3111.3,3.43507516]
[1641874684640,0.00568423,3112.0,3111.3,3.73507516]
[1641874684839,0.00568423,3112.0,3111.3,0.3]
[1641874685039,0.00511581,3111.9,3111.2,0.38033]
[1641874685439,0.00454738,3111.8,3111.2,0.38033]
[1641874685840,0.00397896,3111.7,3111.2,0.38033]
[1641874686046,0.00397896,3111.7,3111.5,0.3]
[1641874686240,0.00341054,3111.6,3111.5,0.38033]
[1641874686699,0.00341054,3111.6,3111.5,4.83033]
[1641874686891,0.00341054,3111.6,3111.5,5.13033]
[1641874687093,0.00341054,3111.6,3111.5,4.83033]
[1641874687293,0.00341054,3111.6,3111.5,5.13033]
[1641874687491,0.00341054,3111.6,3111.5,5.05]
[1641874687691,0.00341054,3111.6,3111.5,4.75]
[1641874688091,0.00341054,3111.6,3111.5,5.05]
[1641874688295,0.00341054,3111.6,3111.5,4.75]
[1641874688491,0.00341054,3111.6,3111.5,5.05]
[1641874688692,0.00341054,3111.6,3111.5,4.75]
[1641874689296,0.00341054,3111.6,3111.5,5.05]
[1641874690543,0.00341054,3111.6,3111.5,4.75]
[1641874690742,0.03041886,3111.5,3111.1,5.12196117]
[1641874690946,0.03041886,3111.5,3111.1,1.62196117]
[1641874691144,0.00227369,3111.4,3111.1,1.62196117]
[1641874691341,0.025831,3111.3,3111.1,1.62196117]
[1641874691540,0.02753627,3111.3,3111.0,3.2]
[1641874691745,0.00113684,3111.2,3111.0,6.76693038]
[1641874691944,0.00113684,3111.2,3111.1,8.50479722]
[1641874692146,0.00113684,3111.2,3111.1,8.58514722]
[1641874693043,0.00113684,3111.2,3111.1,4.13514722]
[1641874693243,0.00113684,3111.2,3111.1,0.3]
[1641874693455,0.00113684,3111.2,3111.0,6.00931957]
[1641874693844,2.5674227,3111.9,3111.0,4.3873584]
[1641874694046,2.8674227,3111.9,3111.0,3.2]
[1641874694288,2.87140167,3111.9,3111.0,3.2]
[1641874694990,2.87140167,3111.9,3111.0,6.66110378]
[1641874695187,0.08033,3111.8,3111.0,6.66110378]
[1641874695588,0.00284212,3111.7,3111.0,3.2]
[1641874695788,0.08035,3111.6,3111.0,3.2]